bitfinex/quotes_BTCUSD_20220212
["timestamp","ask_amount","ask_price","bid_price","bid_amount"]
[1644676826910,0.01271695,42009.0,42005.0,0.34658442]
[1644676826911,0.00038681,42007.0,42005.0,0.34658442]
[1644676827111,0.00038681,42007.0,42006.0,0.04214425]
[1644676827511,0.00038681,42007.0,42001.0,0.05]
[1644676827911,0.01271695,42009.0,42001.0,0.05]
[1644676828110,0.0002541,42006.0,42002.0,0.06598136]
[1644676828312,0.0002541,42009.0,42005.0,0.05]
[1644676828615,0.0002541,42009.0,42005.0,0.1]
[1644676828866,0.24,42007.0,42005.0,0.05]
[1644676829061,0.0001,42006.0,42004.0,0.2]
[1644676829266,0.24,42007.0,42006.0,0.0002]
[1644676832062,0.49583561,42007.0,42006.0,0.0002]
[1644676832265,0.49583561,42007.0,41987.0,0.05]
[1644676832266,0.55983039,42007.0,41987.0,0.05]
[1644676832466,0.0477,42006.0,41987.0,0.05]
[1644676832705,0.0477,42006.0,41985.0,0.3624]
[1644676832706,0.059559,42004.0,41985.0,0.3624]
[1644676832904,0.3477,42003.0,41985.0,0.3624]
[1644676833407,0.3477,42003.0,41990.0,0.06805916]
[1644676833605,0.0477,42003.0,41990.0,0.06805916]
[1644676833805,0.3,42002.0,41990.0,0.06805916]
[1644676834209,0.54353561,42007.0,41990.0,0.06805916]
[1644676834414,0.23396391,42000.0,41990.0,0.06805916]
[1644676834609,0.0001,41999.0,41994.0,0.26964275]
[1644676834812,0.0001,42006.0,41995.0,0.29870962]
[1644676835014,0.0001,42006.0,41995.0,0.05]
[1644676835209,0.0001,42006.0,41985.0,0.4624]
[1644676835413,0.05,42002.0,41985.0,0.3624]
[1644676835612,0.059567,41998.0,41985.0,0.3624]
[1644676835813,0.0478,41997.0,41985.0,0.3624]
[1644676836012,0.3478,41997.0,41985.0,0.3624]
[1644676836216,0.20575796,41986.0,41985.0,0.3624]
[1644676836459,0.20575796,41986.0,41978.0,0.00953]
[1644676836659,0.20575796,41986.0,41983.0,0.00154906]
[1644676837457,0.20575796,41986.0,41978.0,0.00953]
[1644676837458,0.06767618,41985.0,41978.0,0.00953]
[1644676837656,0.0477,41984.0,41978.0,0.00953]
[1644676838655,0.0477,41984.0,41975.0,0.30095386]
[1644676838856,0.0477,41984.0,41976.0,0.00038727]
[1644676839257,0.26086035,41983.0,41976.0,0.00038727]
[1644676839561,0.23558226,41981.0,41976.0,0.00038727]
[1644676839760,0.0477,41980.0,41976.0,0.00038727]
[1644676839958,0.0477,41980.0,41975.0,0.30095386]
[1644676840203,0.0132833,41984.0,41976.0,0.00038725]
[1644676840406,0.059589,41982.0,41976.0,0.00038725]
[1644676840604,0.24442556,41978.0,41976.0,0.00038725]
[1644676840802,0.380981,41977.0,41976.0,0.00038725]
[1644676841002,0.380981,41977.0,41975.0,0.30095386]
[1644676841202,0.56736596,41977.0,41975.0,0.30095386]
[1644676841404,0.41623348,41976.0,41975.0,0.30095386]
[1644676841601,0.46393348,41976.0,41975.0,0.30095386]
[1644676843004,0.13065248,41976.0,41975.0,0.30095386]
[1644676843204,0.46393348,41976.0,41975.0,0.30095386]
[1644676843405,0.73801692,41976.0,41975.0,0.30095386]
[1644676843864,0.24973592,41976.0,41975.0,0.30095386]
[1644676844054,0.29743592,41976.0,41975.0,0.30095386]
[1644676844255,0.34743592,41976.0,41975.0,0.30095386]
[1644676844456,0.38699228,41976.0,41975.0,0.30095386]
[1644676844655,0.53699228,41976.0,41975.0,0.30095386]
[1644676845058,0.87027328,41976.0,41975.0,0.30095386]
[1644676845456,0.87027328,41976.0,41975.0,0.30245808]
[1644676845659,0.53699228,41976.0,41975.0,0.30245808]
[1644676845858,0.87027328,41976.0,41975.0,0.30245808]
[1644676846457,0.87027328,41976.0,41965.0,0.001]
[1644676846458,0.75172,41975.0,41951.0,0.8912]
[1644676846662,0.75172,41975.0,41951.0,0.01]
[1644676846663,0.05,41960.0,41951.0,0.01]
[1644676846860,0.05,41960.0,41952.0,0.00015941]
[1644676846861,0.05,41956.0,41952.0,0.00015941]
[1644676847060,0.380981,41956.0,41952.0,0.00015941]
[1644676847261,0.0477,41956.0,41952.0,0.00015941]
[1644676847920,0.0477,41956.0,41951.0,0.01]
[1644676849722,0.0477,41956.0,41953.0,0.00013321]
[1644676850621,0.0477,41956.0,41954.0,0.07174769]
[1644676850823,0.0477,41956.0,41951.0,0.01]
[1644676851022,0.0477,41956.0,41953.0,0.00038665]
[1644676851222,0.32905838,41956.0,41953.0,0.00038665]
[1644676851462,0.0477,41956.0,41953.0,0.00038665]
[1644676851660,0.2877,41956.0,41953.0,0.00038665]
[1644676851860,0.2877,41956.0,41951.0,0.01]
[1644676852058,0.2877,41956.0,41953.0,0.00038665]
[1644676852459,0.57133077,41956.0,41953.0,0.00038665]
[1644676852862,0.2877,41956.0,41953.0,0.00038665]
[1644676853060,0.2877,41956.0,41951.0,0.01]
[1644676853260,0.2877,41956.0,41953.0,0.00038665]
[1644676854061,0.08593068,41954.0,41953.0,0.00038665]
[1644676854259,0.24,41956.0,41954.0,0.17186136]
[1644676854461,0.0477,41955.0,41954.0,0.17186136]
[1644676855104,0.40020947,41955.0,41954.0,0.17186136]
[1644676855310,0.61947647,41955.0,41954.0,0.17186136]
[1644676855707,0.75,41953.0,41950.0,0.011]
[1644676855911,0.05,41951.0,41950.0,0.011]
[1644676856108,0.0977,41951.0,41950.0,0.011]
[1644676856307,0.0477,41951.0,41950.0,0.011]
[1644676856508,0.0327,41951.0,41950.0,0.011]
[1644676856712,0.3827,41951.0,41950.0,0.011]
[1644676856910,0.4827,41951.0,41950.0,0.011]
[1644676857109,0.1327,41951.0,41950.0,0.011]
[1644676857708,0.1827,41951.0,41950.0,0.011]
[1644676858107,0.0827,41951.0,41950.0,0.011]
[1644676858309,0.0827,41951.0,41941.0,0.3]
[1644676858310,0.22473063,41944.0,41941.0,0.3]
[1644676858510,0.0477,41943.0,41940.0,0.0009384]
[1644676858708,0.0650298,41942.0,41940.0,0.0009384]
[1644676858961,0.0477,41941.0,41940.0,0.0009384]
[1644676859162,0.0477,41941.0,41934.0,0.00078776]
[1644676859163,0.04223,41941.0,41934.0,0.00078776]
[1644676859360,0.633281,41940.0,41934.0,0.00078776]
[1644676859562,0.0650298,41942.0,41934.0,0.00078776]
[1644676859563,0.0477,41939.0,41934.0,0.00078776]
[1644676859760,0.0650298,41942.0,41934.0,0.00078776]
[1644676859761,0.1900002,41936.0,41934.0,0.00078776]
[1644676859962,0.0477,41935.0,41934.0,0.00078776]
[1644676860564,0.03529736,41935.0,41934.0,0.00078776]
[1644676860862,0.03529736,41935.0,41933.0,0.00144066]
[1644676860863,0.333281,41934.0,41933.0,0.00144066]
[1644676861065,0.35341462,41934.0,41933.0,0.00144066]
[1644676861861,0.34841462,41934.0,41933.0,0.00144066]
[1644676862463,1.579378,41934.0,41933.0,0.00144066]
[1644676862714,3.30138554,41934.0,41933.0,0.00144066]
[1644676862917,3.54138554,41934.0,41933.0,0.00144066]
[1644676863314,3.00682216,41934.0,41933.0,0.00144066]
[1644676863514,2.00089562,41934.0,41933.0,0.00144066]
[1644676863715,1.7791725,41934.0,41933.0,0.00144066]
[1644676863914,1.3669,41934.0,41933.0,0.00144066]
[1644676864116,2.3669,41934.0,41933.0,0.00144066]
[1644676864316,2.79247754,41934.0,41933.0,0.00144066]
[1644676864517,3.09273901,41934.0,41933.0,0.00144066]
[1644676864715,2.97336201,41934.0,41933.0,0.00144066]
[1644676864915,3.45087253,41934.0,41933.0,0.00144066]
[1644676865115,3.75653156,41934.0,41933.0,0.00144066]
[1644676865315,3.7027501,41934.0,41933.0,0.00144066]
[1644676865720,4.1027501,41934.0,41933.0,0.00144066]
[1644676865917,4.6415591,41934.0,41933.0,0.08144066]
[1644676866118,4.6415591,41934.0,41925.0,0.0046458]
[1644676866119,5.4532071,41934.0,41925.0,0.0046458]
[1644676866388,5.4532071,41934.0,41895.0,0.00619318]
[1644676866389,0.15,41902.0,41900.0,0.5452]
[1644676866582,1.32258349,41901.0,41900.0,0.22586567]
[1644676866777,0.08095,41902.0,41900.0,0.22586567]
[1644676866980,0.13603196,41923.0,41901.0,0.55]
[1644676866981,0.333308,41909.0,41901.0,0.55]
[1644676867175,0.179232,41910.0,41897.0,0.85]
[1644676867176,0.333306,41903.0,41897.0,0.85]
[1644676867377,0.179232,41910.0,41882.0,0.05]
[1644676867580,0.05,41908.0,41891.0,0.05]
[1644676867778,0.3,41909.0,41898.0,0.05011406]
[1644676867975,0.179232,41910.0,41898.0,0.00011406]
[1644676867976,0.317123,41908.0,41898.0,0.00011406]
[1644676868176,0.317123,41908.0,41899.0,0.067542]
[1644676868379,0.257396,41907.0,41899.0,0.067542]
[1644676868674,0.257396,41905.0,41903.0,0.23028527]
[1644676868883,0.257396,41905.0,41882.0,0.1]
[1644676869076,0.179232,41910.0,41895.0,0.00149224]
[1644676869077,0.257396,41902.0,41895.0,0.00149224]
[1644676869277,0.65,41903.0,41895.0,0.00149224]
[1644676869278,0.257396,41900.0,41895.0,0.00149224]
[1644676869475,0.257396,41900.0,41895.0,0.00217515]
[1644676869682,0.054718,41901.0,41896.0,0.333323]
[1644676869875,0.119435,41903.0,41896.0,0.333323]
[1644676869876,0.119435,41903.0,41897.0,1.00892776]
[1644676870126,0.24987017,41916.0,41908.0,0.7]
[1644676870323,0.7795,41926.0,41908.0,0.7]
[1644676870324,0.5,41917.0,41908.0,0.70282946]
[1644676870520,0.29985516,41925.0,41908.0,0.70282946]
[1644676870726,0.29985516,41925.0,41909.0,0.3]
[1644676870727,0.05,41925.0,41909.0,0.3]
[1644676870926,0.5,41924.0,41914.0,0.25241081]
[1644676871128,0.20711337,41924.0,41916.0,0.25821505]
[1644676871324,0.20711337,41924.0,41923.0,0.24153896]
[1644676871325,0.19055763,41924.0,41923.0,0.24153896]
[1644676871526,0.001,41933.0,41923.0,0.29206879]
[1644676871923,0.001,41933.0,41923.0,0.29206881]
[1644676872124,0.001,41933.0,41923.0,0.05052987]
[1644676872324,0.00592654,41928.0,41923.0,0.05052987]
[1644676872522,0.00592654,41928.0,41923.0,0.05052989]
[1644676873122,0.08,41927.0,41924.0,0.23173987]
[1644676873322,0.01,41934.0,41925.0,0.85]
[1644676873530,0.00592654,41934.0,41931.0,0.24190461]
[1644676873724,0.01,41939.0,41931.0,0.2447346]
[1644676873961,0.00036854,41932.0,41931.0,0.2447346]
[1644676874159,0.00036854,41932.0,41931.0,0.00282999]
[1644676874362,0.00036854,41932.0,41931.0,0.26632414]
[1644676874559,0.00036854,41932.0,41925.0,1.11710888]
[1644676874560,0.00036854,41932.0,41913.0,0.0417509]
[1644676874763,0.00036854,41932.0,41901.0,0.10082366]
[1644676874764,0.05592654,41932.0,41931.0,0.00189152]
[1644676874966,0.02035404,41920.0,41901.0,0.00082366]
[1644676875161,0.22,41916.0,41900.0,0.20414622]
[1644676875360,0.5964,41910.0,41900.0,0.20414622]
[1644676875560,0.0477,41909.0,41900.0,0.15914622]
[1644676875761,0.059708,41907.0,41900.0,0.15914622]
[1644676875963,0.0477,41906.0,41898.0,0.1926812]
[1644676877066,0.0477,41906.0,41890.0,0.0031]
[1644676877267,0.0477,41906.0,41880.0,0.001]
[1644676877268,0.35,41891.0,41880.0,0.001]
[1644676877464,0.02424,41894.0,41893.0,0.02391378]
[1644676877465,1.28124,41894.0,41893.0,0.02391378]
[1644676877710,1.28124,41894.0,41893.0,0.02728001]
[1644676877711,1.34578415,41894.0,41893.0,0.02728001]
[1644676877910,1.34578415,41894.0,41893.0,0.03150036]
[1644676877911,1.40171069,41894.0,41893.0,0.03150036]
[1644676878111,1.92647069,41894.0,41880.0,0.001]
[1644676878310,0.16437069,41894.0,41893.0,0.00506863]
[1644676878512,0.64882654,41894.0,41893.0,0.00506863]
[1644676878716,0.64882654,41894.0,41893.0,0.00338117]
[1644676878911,0.65855654,41894.0,41893.0,0.00338117]
[1644676879114,0.65263,41894.0,41893.0,0.00338117]
[1644676879311,0.65263,41894.0,41893.0,0.0022555]
[1644676879512,0.55,41893.0,41880.0,0.001]
[1644676879715,0.549,41889.0,41880.0,0.001]
[1644676879913,0.549,41884.0,41867.0,0.14876599]
[1644676880112,0.549,41884.0,41867.0,0.19876599]
[1644676880113,0.0439,41883.0,41867.0,0.19876599]
[1644676880314,0.0439,41883.0,41874.0,0.14876599]
[1644676880516,0.0439,41883.0,41874.0,0.22187018]
[1644676880916,0.059744,41880.0,41875.0,0.19593465]
[1644676881117,0.0439,41879.0,41875.0,0.19593465]
[1644676881423,0.0439,41879.0,41871.0,0.01]
[1644676881424,0.119501,41878.0,41871.0,0.01]
[1644676881614,0.44436182,41877.0,41869.0,0.0002538]
[1644676881811,0.059771,41874.0,41869.0,0.0002538]
[1644676882011,0.0439,41873.0,41869.0,0.0002538]
[1644676882211,0.059757,41872.0,41869.0,0.222877]
[1644676882409,0.059757,41872.0,41869.0,0.0002538]
[1644676882410,0.0439,41871.0,41869.0,0.0002538]
[1644676882610,0.0439,41871.0,41869.0,0.00175849]
[1644676882810,0.0439,41871.0,41869.0,0.00100265]
[1644676883010,0.0439,41871.0,41869.0,0.0006704]
[1644676883212,0.0439,41871.0,41864.0,0.00015624]
[1644676883410,0.0439,41871.0,41855.0,0.001]
[1644676883411,0.35,41869.0,41855.0,0.001]
[1644676883611,0.0439,41868.0,41862.0,0.00154208]
[1644676883811,0.059773,41867.0,41862.0,0.00154208]
[1644676884212,0.85,41866.0,41856.0,0.12965519]
[1644676884420,0.85,41866.0,41852.0,0.001]
[1644676884421,0.06735038,41857.0,41852.0,0.001]
[1644676884616,0.06735038,41857.0,41849.0,0.00127129]
[1644676884617,0.3439,41856.0,41849.0,0.00127129]
[1644676884814,0.04377472,41856.0,41847.0,0.00721591]
[1644676885014,0.20949926,41856.0,41847.0,0.00721591]
[1644676885222,0.20357272,41856.0,41848.0,0.19023615]
[1644676885425,0.10357272,41856.0,41848.0,0.19023615]
[1644676885623,0.10357272,41856.0,41851.0,0.05]
[1644676885824,0.10357272,41856.0,41848.0,0.19023615]
[1644676886024,0.10357272,41856.0,41847.0,0.00721591]
[1644676886224,0.15357272,41856.0,41847.0,0.00721591]
[1644676886425,0.10357272,41856.0,41847.0,0.00721591]
[1644676886629,0.10357272,41856.0,41852.0,0.05]
[1644676886823,0.04377472,41856.0,41852.0,0.05]
[1644676887023,0.059773,41860.0,41852.0,0.20290086]
[1644676887225,0.059773,41860.0,41847.0,0.30721591]
[1644676887423,0.059773,41860.0,41859.0,0.08553166]
[1644676887625,0.05977,41869.0,41859.0,0.08553166]
[1644676887825,9.0,41883.0,41863.0,0.05]
[1644676887826,0.20126298,41882.0,41863.0,0.05]
[1644676888026,0.059748,41878.0,41863.0,0.05]
[1644676888222,0.059748,41878.0,41860.0,0.00038519]
[1644676888223,0.30178933,41877.0,41860.0,0.00038519]
[1644676888425,0.24038512,41867.0,41866.0,0.24704502]
[1644676888724,0.24038512,41867.0,41866.0,0.32682193]
[1644676888725,0.12375227,41867.0,41866.0,0.32682193]
[1644676888958,0.42129933,41877.0,41867.0,0.00036773]
[1644676889166,0.00178933,41877.0,41868.0,0.333339]
[1644676889358,0.00178933,41877.0,41872.0,0.18617305]
[1644676889562,0.00178933,41877.0,41867.0,0.00036773]
[1644676889958,0.00178933,41877.0,41873.0,0.21529892]
[1644676890161,0.00178933,41877.0,41874.0,0.333339]
[1644676890358,0.00178933,41877.0,41867.0,0.00036773]
[1644676890961,0.00178933,41877.0,41874.0,0.08355044]
[1644676891163,9.0,41883.0,41875.0,0.333339]
[1644676891363,9.0,41883.0,41875.0,0.31909345]
[1644676891561,8.995,41883.0,41875.0,0.31909345]
[1644676892158,8.995,41883.0,41876.0,0.333485]
[1644676892159,9.054736,41883.0,41876.0,0.333485]
[1644676892813,8.995,41883.0,41879.0,0.25347528]
[1644676893014,8.75573225,41883.0,41880.0,0.333485]
[1644676893316,7.99089314,41883.0,41881.0,0.05]
[1644676893516,7.99089314,41883.0,41882.0,0.333485]
[1644676893517,6.55162902,41883.0,41882.0,0.333485]
[1644676893714,6.41825922,41883.0,41882.0,0.333485]
[1644676893913,5.72730924,41883.0,41882.0,0.64169155]
[1644676894114,5.72730924,41883.0,41882.0,0.79169155]
[1644676894316,0.65517338,41883.0,41882.0,0.79169155]
[1644676894515,0.01,41899.0,41887.0,0.67739039]
[1644676894716,0.01,41899.0,41897.0,0.333485]
[1644676894914,0.014221,41898.0,41896.0,0.05]
[1644676895413,0.014221,41898.0,41897.0,0.52793019]
[1644676895913,0.24,41898.0,41897.0,0.52793019]
[1644676896113,0.19,41898.0,41897.0,0.52793019]
[1644676896360,0.1019548,41898.0,41897.0,0.92793019]
[1644676896662,0.014221,41899.0,41897.0,1.00595057]
[1644676896863,0.01,41909.0,41899.0,0.15]
[1644676897167,0.0173849,41913.0,41906.0,0.05]
[1644676897359,0.0173849,41913.0,41910.0,0.05]
[1644676897560,0.0173849,41913.0,41910.0,0.0439]
[1644676897959,0.0023849,41913.0,41910.0,0.0439]
[1644676899058,0.0023849,41913.0,41912.0,2.06671342]
[1644676899463,0.0023849,41913.0,41910.0,0.04405562]
[1644676899659,0.0023849,41913.0,41910.0,0.0439]
[1644676899859,0.26333874,41916.0,41910.0,0.0439]
[1644676900118,0.26333874,41916.0,41911.0,0.85]
[1644676900516,0.26333874,41916.0,41911.0,0.85015562]
[1644676901115,0.01,41919.0,41911.0,0.85015562]
[1644676901516,0.01,41919.0,41915.0,0.22399707]
[1644676901715,0.00515235,41919.0,41915.0,0.21381682]
[1644676902716,0.00541216,41919.0,41915.0,0.21381682]
[1644676903316,0.00541216,41919.0,41914.0,0.05]
[1644676903719,0.00515235,41919.0,41914.0,0.05]
[1644676903971,0.07697773,41917.0,41914.0,0.05]
[1644676904169,0.00541216,41919.0,41914.0,0.05]
[1644676905070,0.00515235,41919.0,41914.0,0.05]
[1644676905368,0.00541216,41919.0,41914.0,0.05]
[1644676906170,0.00515235,41919.0,41914.0,0.05]
[1644676906368,0.0055386,41919.0,41914.0,0.05]
[1644676906769,0.00704532,41919.0,41914.0,0.05]
[1644676907616,0.059686,41918.0,41914.0,0.05]
[1644676907811,0.29697785,41917.0,41914.0,0.05]
[1644676908017,0.11938,41916.0,41914.0,0.07]
[1644676908216,0.00704532,41919.0,41914.0,0.07]
[1644676908515,0.00665907,41919.0,41914.0,0.07]
[1644676908915,0.00704532,41919.0,41914.0,0.07]
[1644676909516,0.24871353,41916.0,41914.0,0.07]
[1644676910215,0.00038625,41917.0,41914.0,0.07]
[1644676910816,0.00038625,41917.0,41914.0,0.29370661]
[1644676911017,0.00665907,41919.0,41914.0,0.29370661]
[1644676911219,0.00665907,41919.0,41914.0,0.07]
[1644676911220,0.00038625,41918.0,41914.0,0.07]
[1644676911657,0.00038625,41918.0,41914.0,0.35829453]
[1644676911857,0.00038625,41918.0,41914.0,0.07]
[1644676912060,0.00038625,41918.0,41915.0,0.28815336]
[1644676912260,0.00665907,41919.0,41915.0,0.28815336]
[1644676912460,0.00038625,41918.0,41916.0,0.22162602]
[1644676912762,0.00038625,41918.0,41917.0,0.29026684]
[1644676913164,0.00154464,41928.0,41918.0,0.85]
[1644676913360,0.01,41929.0,41918.0,0.85]
[1644676913763,0.01,41929.0,41919.0,0.2122447]
[1644676914160,0.01,41929.0,41920.0,0.20023348]
[1644676914362,0.01,41929.0,41919.0,0.2122447]
[1644676914363,0.01,41929.0,41923.0,0.05]
[1644676914960,0.00038671,41927.0,41923.0,0.05]
[1644676915811,0.01,41929.0,41923.0,0.05]
[1644676916212,0.01,41929.0,41928.0,0.21217838]
[1644676916412,0.01,41929.0,41928.0,0.44510992]
[1644676916615,0.01,41929.0,41928.0,0.23293154]
[1644676917217,0.01,41929.0,41923.0,0.05]
[1644676917613,0.01,41929.0,41925.0,0.1945972]
[1644676918414,0.01025952,41929.0,41925.0,0.1945972]
[1644676919361,0.01,41929.0,41925.0,0.1945972]
[1644676919661,0.01,41929.0,41925.0,0.2445972]
[1644676919662,0.0053872,41929.0,41925.0,0.2445972]
[1644676919862,0.0053872,41929.0,41925.0,0.1945972]
[1644676920463,0.00154855,41935.0,41929.0,0.01616159]
[1644676920664,0.27656521,41945.0,41929.0,0.01616159]
[1644676920865,0.27656521,41945.0,41932.0,0.05]
[1644676921161,0.27656521,41945.0,41932.0,0.04500001]
[1644676921361,0.27656521,41945.0,41933.0,0.23582932]
[1644676921362,0.26599511,41942.0,41933.0,0.23582932]
[1644676921662,0.00726677,41939.0,41933.0,0.23582932]
[1644676922710,0.00726677,41939.0,41932.0,0.04500001]
[1644676922711,0.25952789,41935.0,41932.0,0.04500001]
[1644676922911,0.00726677,41939.0,41932.0,0.04500001]
[1644676923415,0.00025903,41936.0,41935.0,2.41728925]
[1644676924110,0.00726677,41939.0,41935.0,2.41728925]
[1644676924513,0.00038766,41938.0,41932.0,0.04500001]
[1644676924913,0.059656,41937.0,41932.0,0.04500001]
[1644676925311,0.2095766,41936.0,41932.0,0.04500001]
[1644676926755,0.48352045,41936.0,41932.0,0.04500001]
[1644676926958,0.48352045,41936.0,41934.0,0.01827828]
[1644676926959,0.48826861,41936.0,41934.0,0.01827828]
[1644676927158,0.30639097,41935.0,41934.0,0.01073495]
[1644676927357,0.25996427,41936.0,41934.0,0.01073495]
[1644676927756,0.2595766,41936.0,41934.0,0.01073495]
[1644676927958,0.2595766,41936.0,41923.0,0.05]
[1644676927959,1.06,41934.0,41923.0,0.05]
[1644676928162,0.13187957,41925.0,41922.0,0.05]
[1644676929159,0.20544896,41924.0,41922.0,0.05]
[1644676930310,0.29494245,41924.0,41922.0,0.05]
[1644676931510,0.05,41923.0,41922.0,0.05]
[1644676931710,0.05,41923.0,41921.0,0.00034825]
[1644676931910,0.17572433,41922.0,41921.0,0.00034825]
[1644676932111,0.85,41921.0,41906.0,0.6219]
[1644676932309,0.28,41920.0,41906.0,0.6219]
[1644676932712,0.24333217,41909.0,41906.0,0.6219]
[1644676932913,0.24333217,41909.0,41906.0,0.62345583]
[1644676933114,0.24333217,41909.0,41906.0,0.00155583]
[1644676934363,0.059693,41913.0,41906.0,0.00155583]
[1644676934562,0.29242957,41912.0,41906.0,0.00155583]
[1644676934767,0.08475308,41908.0,41906.0,0.00155583]
[1644676934963,0.059702,41907.0,41906.0,0.00155583]
[1644676935164,0.06778679,41901.0,41894.0,0.04671145]
[1644676935363,0.06778679,41901.0,41890.0,0.654]
[1644676935364,0.13122679,41901.0,41890.0,0.654]
[1644676935562,0.13122679,41901.0,41890.0,0.0021]
[1644676935768,0.13122679,41901.0,41890.0,0.26931171]
[1644676935769,0.06344,41901.0,41890.0,0.26931171]
[1644676936366,0.02388,41902.0,41893.0,0.00038782]
[1644676936563,0.0597,41908.0,41893.0,0.00038782]
[1644676936763,0.06366761,41905.0,41893.0,0.00038782]
[1644676936964,0.0597,41908.0,41895.0,0.19035658]
[1644676937165,0.163309,41909.0,41895.0,0.19035658]
[1644676937166,0.0439,41909.0,41895.0,0.19035658]
[1644676937366,0.26977466,41906.0,41895.0,0.45987418]
[1644676937610,0.26977466,41906.0,41900.0,0.0003878]
[1644676937806,0.1439,41914.0,41900.0,0.0003878]
[1644676938107,0.36402494,41914.0,41900.0,0.0003878]
[1644676938407,0.0597,41908.0,41900.0,0.0003878]
[1644676938607,0.0597,41908.0,41902.0,0.21006385]
[1644676938810,0.05,41917.0,41907.0,0.22544783]
[1644676939011,0.05,41917.0,41908.0,0.32241732]
[1644676939206,0.05,41917.0,41905.0,0.00038779]
[1644676939408,0.06495639,41911.0,41905.0,0.00038779]
[1644676939607,0.20534279,41914.0,41905.0,0.00038779]
[1644676939806,0.35076279,41914.0,41902.0,0.21006385]
[1644676940006,0.05,41910.0,41906.0,0.00038779]
[1644676940209,0.35076279,41914.0,41906.0,0.00038779]
[1644676940210,0.24965417,41907.0,41906.0,0.00038779]
[1644676940408,0.19965417,41907.0,41906.0,0.00038779]
[1644676941009,0.19965417,41907.0,41894.0,0.05]
[1644676941209,0.19965417,41907.0,41904.0,0.00038779]
[1644676941210,0.29507417,41907.0,41904.0,0.00038779]
[1644676942270,0.09542,41907.0,41900.0,0.10246134]
[1644676942469,0.09542,41907.0,41903.0,0.00038779]
[1644676942870,0.09542,41907.0,41900.0,0.09784913]
[1644676943268,0.22038599,41912.0,41900.0,0.09784913]
[1644676943469,0.059692,41914.0,41904.0,0.26269357]
[1644676943673,0.119369,41923.0,41904.0,0.26269357]
[1644676943870,0.28360184,41922.0,41905.0,0.0439]
[1644676944069,0.38842283,41927.0,41905.0,0.0439]
[1644676944473,0.49900326,41924.0,41913.0,0.20283785]
[1644676944971,0.00038773,41915.0,41913.0,0.20283785]
[1644676945417,0.00038773,41915.0,41914.0,0.33334]
[1644676945610,0.00038773,41915.0,41914.0,0.0439]
[1644676945815,2.63729366,41932.0,41914.0,0.37724]
[1644676946012,0.50708994,41929.0,41914.0,0.0439]
[1644676946210,0.00038773,41917.0,41914.0,0.0439]
[1644676946411,0.00038773,41917.0,41915.0,0.33334]
[1644676946716,0.00155067,41923.0,41916.0,0.47440551]
[1644676946914,0.00155067,41923.0,41917.0,0.09973491]
[1644676947110,0.31147114,41940.0,41918.0,0.0439]
[1644676947312,0.00226677,41939.0,41918.0,0.0439]
[1644676947513,0.2479754,41939.0,41928.0,0.24598823]
[1644676947910,0.2479754,41939.0,41926.0,0.24660194]
[1644676948867,0.00226677,41939.0,41927.0,0.0439]
[1644676949166,0.00226677,41939.0,41927.0,0.0389]
[1644676949671,0.00038767,41935.0,41927.0,0.0389]
[1644676950771,0.059658,41937.0,41927.0,0.0389]
[1644676950969,0.32795806,41938.0,41927.0,0.0389]
[1644676950970,0.00038768,41933.0,41927.0,0.0389]
[1644676951369,0.00038768,41933.0,41927.0,0.0339]
[1644676951770,0.00038768,41933.0,41927.0,0.03338277]
[1644676951972,0.00226677,41939.0,41927.0,0.03338277]
[1644676952173,0.00038768,41932.0,41928.0,0.3]
[1644676952378,0.00038768,41932.0,41928.0,0.3439]
[1644676952622,0.00038768,41932.0,41928.0,0.0439]
[1644676952813,0.00038768,41932.0,41930.0,0.26739469]
[1644676953015,0.00226677,41939.0,41932.0,0.00077535]
[1644676953216,0.00226677,41939.0,41933.0,0.0439]
[1644676954215,0.00226677,41939.0,41934.0,0.19062273]
[1644676954416,0.00226677,41939.0,41933.0,0.0439]
[1644676954615,0.00038874,41938.0,41933.0,0.0439]
[1644676955514,0.00226677,41939.0,41933.0,0.0439]
[1644676955721,0.07582348,41938.0,41933.0,0.0439]
[1644676955917,0.00038875,41938.0,41933.0,0.0439]
[1644676956118,0.00038875,41938.0,41933.0,0.03855179]
[1644676956762,0.00226677,41939.0,41933.0,0.03855179]
[1644676956961,0.18970634,41938.0,41933.0,0.03855179]
[1644676957661,0.00226677,41939.0,41933.0,0.03855179]
[1644676957861,0.00226677,41939.0,41932.0,0.00077535]
[1644676958663,0.00226677,41939.0,41933.0,0.22648093]
[1644676959565,0.00038893,41938.0,41934.0,0.33334]
[1644676959769,0.00038893,41938.0,41933.0,0.22648093]
[1644676960215,0.00226677,41939.0,41932.0,0.04467535]
[1644676960617,0.00038893,41938.0,41932.0,0.04467535]
[1644676961120,0.23240072,41937.0,41932.0,0.00077535]
[1644676961916,0.23240072,41937.0,41932.0,0.20660655]
[1644676961917,0.00038894,41937.0,41932.0,0.20660655]
[1644676962115,0.00038894,41937.0,41932.0,0.2058312]
[1644676962718,0.059648,41945.0,41932.0,0.2058312]
[1644676962916,0.20799225,41943.0,41932.0,0.2058312]
[1644676963216,0.00038894,41937.0,41928.0,0.22710332]
[1644676963860,0.059653,41941.0,41928.0,0.22710332]
[1644676964060,0.059653,41941.0,41930.0,0.00038898]
[1644676964261,0.059653,41941.0,41931.0,0.25566224]
[1644676964462,0.26774704,41936.0,41930.0,0.00038898]
[1644676964867,0.19250192,41936.0,41930.0,0.00038898]
[1644676965067,0.19250192,41936.0,41924.0,0.5941]
[1644676965263,0.19250192,41936.0,41931.0,0.00038898]
[1644676966263,0.059652,41941.0,41926.0,0.21958449]
[1644676966463,0.30736586,41940.0,41931.0,0.00038898]
[1644676966663,0.059652,41941.0,41931.0,0.00038898]
[1644676967263,0.059652,41941.0,41933.0,0.22202844]
[1644676967464,0.059652,41941.0,41926.0,0.21958449]
[1644676967718,0.059652,41941.0,41935.0,0.00038897]
[1644676968811,0.059652,41941.0,41929.0,0.23018553]
[1644676969013,0.059652,41941.0,41936.0,0.00038897]
[1644676969210,0.46832447,41944.0,41936.0,0.00038897]
[1644676969211,0.32890638,41944.0,41936.0,0.00038897]
[1644676969412,0.059648,41944.0,41936.0,0.00038897]
[1644676969815,0.33948119,41944.0,41936.0,0.00038897]